Workbook

Sheet előlap
A1: PÉNZÜGYI BESZÁMOLÓ
A2: NKFI Alapból finanszírozott innovációs projektek pénzügyi beszámolóinak elkészítéséhez
A3: Jelen sablon mindazon nyertes innovációs projektekre vonatkozik, amelyeknél a pályázatot nem a palyazat.gov.hu oldalon keresztül elérhető on-line felületen kellett beadni és a támogatási szerződés hatályba lépésére 2017.01.01-ét követően került sor. Jelen sablon érvényes a tudományos kutatásról, fejlesztésről és innovációról szóló 2014. évi LXXVI. törvény 13. § (2) bekezdése szerinti támogatást elnyert projektre is.
A5: Kedvezményezett neve: | C5: ZZ Kft
A6: Szerződésszám: | C6: NPK_22-2022-0001
A7: Az elszámolással érintett időszak kezdete és vége: | C7: 2020.01.01.-2022.12.31.
A10: Beadott dokumentumok (ellenőrző) listája: | C10: Dokumentum mellékelve (igen/nem) legördülő menü | D10: Minden elszámolásnál kötelezően beadandó dokumentum
A11: 1T-2T | B11: Személyi juttatások és járulékai | C11: igen | D11: IGEN
A12: 3T | B12: Külső megbízások
A13: 4T | B13: Egyéb dologi költségek
A14: 5T | B14: Rezsi költségek
A15: 6T | B15: Immateriális javak beszerzése
A16: 7T | B16: Eszközbeszerzések
A17: 8T | B17: Beruházás, felújítás
A18: 9T | B18: Részfeladat tábla (Támogatás, Saját forrás; Egyéb forrás; Összesítés)
A19: TI | B19: Támogatás igénylés
A20: KNY | B20: Könyvvizsgálói nyilatkozat
A21: LNY | B21: Lemondó nyilatkozat (*) | D21: Csak a projekt utolsó elszámolásakor kell beadni, amennyiben a megítélt támogatás nem került teljes mértékben felhasználásra
A22: NYF | B22: Nyilatkozat az összeférhetetlenségre vonatkozóan | C22: igen | D22: IGEN
A23: EI | B23: Előleg igénylés | D23: A projekt következő időszakára vonatkozó előleg lekérése esetén kell beadni

Sheet (1T-2T) személyi+járulék
A1: Kedvezményezett neve: | G1: =előlap!C5 -> ZZ Kft
A2: Szerződésszám: | G2: =előlap!C6 -> NPK_22-2022-0001
A3: Az elszámolással érintett időszak kezdete és vége: | G3: =előlap!C7 -> 2020.01.01.-2022.12.31.
A5: SZEMÉLYI JUTTATÁSOK ÉS JÁRULÉKAI
A7: Projektben résztvevő dolgozók | C7: Az elszámolt időszak | E7: Az adott hónapban a projektre elszámolt munka-órák száma | F7: Pénzügyi teljesítés időpontja | G7: Állandó dolgozó (Á), vagy megbí-zásos dolgozó (M) (legördülő menű) | H7: Projektre elszámolt bruttó bér (Ft) | K7: Projektre elszámolt egyéb juttatások (Ft) (pld. napidíj, stb.) | N7: Projektre elszámolt bruttó bér és juttatások összesen (Ft) | Q7: Projektre elszámolt bruttó bér járuléka (Ft) | T7: Rész-feladat száma | U7: Tám. int.
A8: neve | B8: státusza (legördülő menű) | C8: kezdete (dátum) | D8: vége (dátum) | H8: Támogatás | I8: Saját forrás | J8: Egyéb forrás | K8: Támogatás | L8: Saját forrás | M8: Egyéb forrás | N8: Támogatás | O8: Saját forrás | P8: Egyéb forrás | Q8: Támogatás | R8: Saját forrás | S8: Egyéb forrás
A9: Panni | B9: K+F munkatárs | C9: 2016-01-01 | D9: 2016-01-25 | F9: 2016-02-05 | G9: M | H9: 5000 | I9: 500 | J9: 50 | K9: 1000 | L9: 100 | M9: 10 | N9: =H9+K9 -> 6000 | O9: =I9+L9 -> 600 | P9: =J9+M9 -> 60 | Q9: 2000 | R9: 200 | S9: 20 | T9: 1 | U9: 1
B10: Techn., segédszem. | C10: 2016-01-01 | D10: 2016-01-25 | E10: 26 | F10: 2016-02-05 | G10: Á | N10: =H10+K10 -> 0 | O10: =I10+L10 -> 0 | P10: =J10+M10 -> 0
B11: Pr.menedzser | N11: 0 | O11: 0 | P11: 0
B12: Egyéb | N12: 0 | O12: 0 | P12: 0
N13: 0 | O13: 0 | P13: 0
N14: 0 | O14: 0 | P14: 0
N15: 0 | O15: 0 | P15: 0
N16: 0 | O16: 0 | P16: 0
N17: 0 | O17: 0 | P17: 0
N18: 0 | O18: 0 | P18: 0
N19: 0 | O19: 0 | P19: 0
N20: 0 | O20: 0 | P20: 0
N21: 0 | O21: 0 | P21: 0
N22: 0 | O22: 0 | P22: 0
N23: 0 | O23: 0 | P23: 0
N24: 0 | O24: 0 | P24: 0
A26: Összesen: | H26: =SUM(H9:H24) -> 5000 | I26: =SUM(I9:I24) -> 500 | J26: 50 | K26: 1000 | L26: 100 | M26: 10 | N26: 6000 | O26: 600 | P26: 60 | Q26: 2000 | R26: 200 | S26: 20
A28: A jelen táblázatban összesített, a munkavállalóknak kifizetett nettó jövedelem, illetve a munkavállalót és a munkáltatót terhelő adók, járulékok a jelen támogatás igénylést megelőzően kifizetésre kerültek. Büntetőjogi felelősségem tudatában nyilatkozom hogy a fenti adatok a valóságnak megfelelnek, hitelesek, továbbá, hogy az illetmények számfejtésének és kifizetésének a bizonylatai, valamint a számfejtés alapját képező teljesítésigazolások és a munka- vagy megbízási szerződések a Kedvezményezettnél megtalálhatóak.
A30: Hely, dátum
G32: ……………………………………
A33: * Az aláírók nevét nyomtatott betűkkel is kérjük kitölteni. | G33: cégszerű aláírás* | I33: Ph.

Sheet (3T) külső megbízás
A1: Kedvezményezett neve: | E1: =előlap!C5 -> ZZ Kft
A2: Szerződésszám: | E2: =előlap!C6 -> NPK_22-2022-0001
A3: Az elszámolással érintett időszak kezdete és vége: | E3: =előlap!C7 -> 2020.01.01.-2022.12.31.
A5: KÜLSŐ MEGBÍZÁSOK
A7: Sor-szám | B7: Számviteli bizonylat kiállítójának neve | C7: Adószáma | D7: Számviteli bizonylat sorszáma | E7: Kiállítás kelte | F7: Teljesítés dátuma | G7: Pénzügyi teljesítés időpontja | H7: Gazdasági esemény rövid leírása | I7: Összege (Ft) | L7: Projekt terhére elszámolt költségek (Ft) | P7: Rész-feladat száma | Q7: Tám. int.
A8: szám | I8: Bruttó | J8: Nettó | K8: ÁFA | L8: Támogatás | M8: Saját forrás | N8: Egyéb f. | O8: Összesen
A9: 1. | I9: 325 | J9: 325 | K9: 0 | L9: 325 | O9: =SUM(L9:N9) -> 325 | Q9: 1
A10: 2. | O10: =SUM(L10:N10) -> 0
O11: 0
O12: 0
O13: 0
O14: 0
O15: 0
O16: 0
O17: 0
O18: 0
O19: 0
O20: 0
O21: 0
O22: 0
O23: 0
O24: 0
O25: 0
O26: 0
A28: Összesen | I28: =SUM(I9:I26) -> 325 | J28: 325 | K28: 0 | L28: 325 | M28: 0 | N28: 0 | O28: 325
A30: A jelen táblázatban összesített számlák és bizonylatok a jelen támogatás igénylés benyújtását megelőzően szakmailag és pénzügyileg teljesítésre kerültek, a projektben történő felhasználás mértéke erejéig kerültek elszámolásra. A Kedvezményezett tudomásul veszi, hogy jelen melléklet szerinti számlaösszesítő táblázatok befogadása nem jelenti egyben a táblázatok tartalmának pénzügyi elfogadását, ugyanakkor a számlaösszesítő táblázatok kitöltéséért teljeskörű felelősséggel tartozik.
A32: Hely, dátum
E33: ……………………………………
E34: cégszerű aláírás* | G34: Ph.
A35: * Az aláírók nevét nyomtatott betűkkel is kérjük kitölteni.

Sheet (4T) egyéb dologi költs
A1: Kedvezményezett neve: | D1: =előlap!C5 -> ZZ Kft
A2: Szerződésszám: | D2: =előlap!C6 -> NPK_22-2022-0001
A3: Az elszámolással érintett időszak kezdete és vége: | D3: =előlap!C7 -> 2020.01.01.-2022.12.31.
A5: EGYÉB DOLOGI KÖLTSÉGEK (rezsi nélkül)
A7: Sor-szám | B7: Számviteli bizonylat kiállítójának neve | C7: Adószáma | D7: Számviteli bizonylat sorszáma | E7: Kiállítás kelte | F7: Teljesítés dátuma | G7: Pénzügyi teljesítés időpontja | H7: Gazdasági esemény rövid leírása | I7: Összege (Ft) | L7: Projekt terhére elszámolt költségek (Ft) | P7: Rész-feladat száma | Q7: Tám. int.
A8: szám | I8: Bruttó | J8: Nettó | K8: ÁFA | L8: Támogatás | M8: Saját forrás | N8: Egyéb f. | O8: Összesen
A9: 1. | I9: 10100 | J9: 10100 | K9: 0 | L9: 10100 | O9: =SUM(L9:N9) -> 10100 | Q9: 1
A10: 2. | O10: =SUM(L10:N10) -> 0
O11: 0
O12: 0
O13: 0
O14: 0
O15: 0
O16: 0
O17: 0
O18: 0
O19: 0
O20: 0
O21: 0
O22: 0
O23: 0
A25: Összesen | H25: =SUM(H9:H23) -> 0 | I25: 10100 | J25: 10100 | K25: 0 | L25: 10100 | M25: 0 | N25: 0 | O25: 10100
A27: A jelen táblázatban összesített számlák és bizonylatok a jelen támogatás igénylés benyújtását megelőzően szakmailag és pénzügyileg teljesítésre kerültek, a projektben történő felhasználás mértéke erejéig kerültek elszámolásra. A Kedvezményezett tudomásul veszi, hogy jelen melléklet szerinti számlaösszesítő táblázatok befogadása nem jelenti egyben a táblázatok tartalmának pénzügyi elfogadását, ugyanakkor a számlaösszesítő táblázatok kitöltéséért teljeskörű felelősséggel tartozik.
A30: Hely, dátum | E30: ……………………………………
E31: cégszerű aláírás* | G31: Ph.
A32: * Az aláírók nevét nyomtatott betűkkel is kérjük kitölteni.

Sheet (5T) rezsi
A1: Kedvezményezett neve: | D1: =előlap!C5 -> ZZ Kft
A2: Szerződésszám: | D2: =előlap!C6 -> NPK_22-2022-0001
A3: Az elszámolással érintett időszak kezdete és vége: | D3: =előlap!C7 -> 2020.01.01.-2022.12.31.
A5: REZSI KÖLTSÉGEK
A7: Sor-szám | B7: Számviteli bizonylat kiállítójának neve | C7: Adószáma | D7: Számviteli bizonylat sorszáma | E7: Kiállítás kelte | F7: Teljesítés dátuma | G7: Pénzügyi teljesítés időpontja | H7: Gazdasági esemény rövid leírása | I7: Összege (Ft) | L7: Projekt terhére elszámolt költségek (Ft) | P7: Rész-feladat száma | Q7: Tám. int.
A8: szám | I8: Bruttó | J8: Nettó | K8: ÁFA | L8: Támogatás | M8: Saját forrás | N8: Egyéb f. | O8: Összesen
A9: 1. | I9: 200 | J9: 200 | L9: 200 | O9: =SUM(L9:N9) -> 200 | Q9: 1
A10: 2. | O10: =SUM(L10:N10) -> 0
O11: 0
O12: 0
O13: 0
O14: 0
O15: 0
O16: 0
O17: 0
O18: 0
O19: 0
O20: 0
O21: 0
O22: 0
O23: 0
A25: Összesen | H25: =SUM(H9:H23) -> 0 | I25: 200 | J25: 200 | K25: 0 | L25: 200 | M25: 0 | N25: 0 | O25: 200
A27: A jelen táblázatban összesített számlák és bizonylatok a jelen támogatás igénylés benyújtását megelőzően szakmailag és pénzügyileg teljesítésre kerültek, a projektben történő felhasználás mértéke erejéig kerültek elszámolásra. A Kedvezményezett tudomásul veszi, hogy jelen melléklet szerinti számlaösszesítő táblázatok befogadása nem jelenti egyben a táblázatok tartalmának pénzügyi elfogadását, ugyanakkor a számlaösszesítő táblázatok kitöltéséért teljeskörű felelősséggel tartozik.
A30: Hely, dátum | E30: ……………………………………
E31: cégszerű aláírás* | G31: Ph.
A32: * Az aláírók nevét nyomtatott betűkkel is kérjük kitölteni.

Sheet (6T)immat beszerz
A1: Kedvezményezett neve: | D1: =előlap!C5 -> ZZ Kft
A2: Szerződésszám: | D2: =előlap!C6 -> NPK_22-2022-0001
A3: Az elszámolással érintett időszak kezdete és vége: | D3: =előlap!C7 -> 2020.01.01.-2022.12.31.
A6: IMMATERIÁLIS JAVAK BESZERZÉSE
A8: Sor-szám | B8: Számviteli bizonylat kiállítójának neve | C8: Adószáma | D8: Számviteli bizonylat sorszáma | E8: Kiállítás kelte | F8: Teljesítés dátuma | G8: Pénzügyi teljesítés időpontja | H8: Amortizációnál az elszámolt időszak | J8: amortizá-ciós kulcs % | K8: Gazdasági esemény rövid leírása | L8: Összege (Ft) | O8: Projekt terhére elszámolt költségek (Ft) | S8: Rész-feladat száma | T8: Tám. int.
A9: szám | H9: kezdete (dátum) | I9: vége (dátum) | L9: Bruttó | M9: Nettó | N9: ÁFA | O9: Támogatás | P9: Saját forrás | Q9: Egyéb f. | R9: Összesen
A10: 1. | L10: 6000 | M10: 6000 | O10: 3000 | P10: 3000 | R10: =SUM(O10:Q10) -> 6000 | T10: 0.5
A11: 2. | R11: =SUM(O11:Q11) -> 0
R12: 0
R13: 0
R14: 0
R15: 0
R16: 0
R17: 0
R18: 0
R19: 0
R20: 0
R21: 0
R22: 0
R23: 0
R24: 0
R25: 0
A27: Összesen | L27: =SUM(L10:L26) -> 6000 | M27: =SUM(M10:M26) -> 6000 | N27: 0 | O27: =SUM(O10:O26) -> 3000 | P27: =SUM(P10:P26) -> 3000 | Q27: 0 | R27: 6000
A29: A jelen táblázatban összesített számlák és bizonylatok a jelen támogatás igénylés benyújtását megelőzően szakmailag és pénzügyileg teljesítésre kerültek, a projektben történő felhasználás mértéke erejéig kerültek elszámolásra. A Kedvezményezett tudomásul veszi, hogy jelen melléklet szerinti számlaösszesítő táblázatok befogadása nem jelenti egyben a táblázatok tartalmának pénzügyi elfogadását, ugyanakkor a számlaösszesítő táblázatok kitöltéséért teljeskörű felelősséggel tartozik.
A31: Hely, dátum
E32: ……………………………………
E33: cégszerű aláírás* | G33: Ph.
A38: * Az aláírók nevét nyomtatott betűkkel is kérjük kitölteni.

Sheet (7T) eszközbeszerz
A1: Kedvezményezett neve: | D1: =előlap!C5 -> ZZ Kft
A2: Szerződésszám: | D2: =előlap!C6 -> NPK_22-2022-0001
A3: Az elszámolással érintett időszak kezdete és vége: | D3: =előlap!C7 -> 2020.01.01.-2022.12.31.
A6: ESZKÖZBESZERZÉSEK
A8: Sor-szám | B8: Számviteli bizonylat kiállítójának neve | C8: Adószáma | D8: Számviteli bizonylat sorszáma | E8: Kiállítás kelte | F8: Teljesítés dátuma | G8: Pénzügyi teljesítés időpontja | H8: Amortizációnál az elszámolt időszak | J8: amortizá-ciós kulcs % | K8: Gazdasági esemény rövid leírása | L8: Összege (Ft) | O8: Projekt terhére elszámolt költségek (Ft) | S8: Rész-feladat száma | T8: Tám. int.
A9: szám | H9: kezdete (dátum) | I9: vége (dátum) | L9: Bruttó | M9: Nettó | N9: ÁFA | O9: Támogatás | P9: Saját forrás | Q9: Egyéb f. | R9: Összesen
A10: 1. | L10: 100000 | M10: 80000 | N10: 20000 | O10: 50000 | P10: 50000 | Q10: 0 | R10: =SUM(O10:Q10) -> 100000 | S10: 1 | T10: 0.5
A11: 2. | R11: =SUM(O11:Q11) -> 0
R12: 0
R13: 0
R14: 0
R15: 0
R16: 0
R17: 0
R18: 0
R19: 0
R20: 0
R21: 0
R22: 0
R23: 0
R24: 0
R25: 0
A27: Összesen | L27: =SUM(L10:L26) -> 100000 | M27: =SUM(M10:M26) -> 80000 | N27: 20000 | O27: =SUM(O10:O26) -> 50000 | P27: =SUM(P10:P26) -> 50000 | Q27: 0 | R27: 100000
A29: A jelen táblázatban összesített számlák és bizonylatok a jelen támogatás igénylés benyújtását megelőzően szakmailag és pénzügyileg teljesítésre kerültek, a projektben történő felhasználás mértéke erejéig kerültek elszámolásra. A Kedvezményezett tudomásul veszi, hogy jelen melléklet szerinti számlaösszesítő táblázatok befogadása nem jelenti egyben a táblázatok tartalmának pénzügyi elfogadását, ugyanakkor a számlaösszesítő táblázatok kitöltéséért teljeskörű felelősséggel tartozik.
A31: Hely, dátum
E32: ……………………………………
E33: cégszerű aláírás* | G33: Ph.
A38: * Az aláírók nevét nyomtatott betűkkel is kérjük kitölteni.

Sheet (8T) beruházás felújítás
A1: Kedvezményezett neve: | D1: =előlap!C5 -> ZZ Kft
A2: Szerződésszám: | D2: =előlap!C6 -> NPK_22-2022-0001
A3: Az elszámolással érintett időszak kezdete és vége: | D3: =előlap!C7 -> 2020.01.01.-2022.12.31.
A6: BERUZÁZÁS, FELÚJÍTÁS
A8: Sor-szám | B8: Számviteli bizonylat kiállítójának neve | C8: Adószáma | D8: Számviteli bizonylat sorszáma | E8: Kiállítás kelte | F8: Teljesítés dátuma | G8: Pénzügyi teljesítés időpontja | H8: Amortizációnál az elszámolt időszak | J8: amortizá-ciós kulcs % | K8: Gazdasági esemény rövid leírása | L8: Összege (Ft) | O8: Projekt terhére elszámolt költségek (Ft) | S8: Rész-feladat száma | T8: Tám. int.
A9: szám | H9: kezdete (dátum) | I9: vége (dátum) | L9: Bruttó | M9: Nettó | N9: ÁFA | O9: Támogatás | P9: Saját forrás | Q9: Egyéb f. | R9: Összesen
A10: 1. | L10: 10000 | M10: 10000 | O10: 2500 | P10: 7500 | R10: =SUM(O10:Q10) -> 10000 | T10: 0.25
A11: 2. | R11: =SUM(O11:Q11) -> 0
R12: 0
R13: 0
R14: 0
R15: 0
R16: 0
R17: 0
R18: 0
R19: 0
R20: 0
R21: 0
R22: 0
R23: 0
R24: 0
R25: 0
A27: Összesen | L27: =SUM(L10:L26) -> 10000 | M27: =SUM(M10:M26) -> 10000 | N27: 0 | O27: =SUM(O10:O26) -> 2500 | P27: =SUM(P10:P26) -> 7500 | Q27: 0 | R27: 10000
A29: A jelen táblázatban összesített számlák és bizonylatok a jelen támogatás igénylés benyújtását megelőzően szakmailag és pénzügyileg teljesítésre kerültek, a projektben történő felhasználás mértéke erejéig kerültek elszámolásra. A Kedvezményezett tudomásul veszi, hogy jelen melléklet szerinti számlaösszesítő táblázatok befogadása nem jelenti egyben a táblázatok tartalmának pénzügyi elfogadását, ugyanakkor a számlaösszesítő táblázatok kitöltéséért teljeskörű felelősséggel tartozik.
A31: Hely, dátum
E32: ……………………………………
E33: cégszerű aláírás* | G33: Ph.
A38: * Az aláírók nevét nyomtatott betűkkel is kérjük kitölteni.

Sheet (9T) részfeladat tábla
A1: Kedvezményezett neve: | F1: =előlap!C5 -> ZZ Kft | O1: Kedvezményezett neve: | T1: =F1 -> ZZ Kft | AC1: Kedvezményezett neve: | AH1: =F1 -> ZZ Kft | AQ1: Kedvezményezett neve: | AV1: =F1 -> ZZ Kft
A2: Szerződésszám: | F2: =előlap!C6 -> NPK_22-2022-0001 | O2: Szerződésszám: | T2: =F2 -> NPK_22-2022-0001 | AC2: Szerződésszám: | AH2: =F2 -> NPK_22-2022-0001 | AQ2: Szerződésszám: | AV2: =F2 -> NPK_22-2022-0001
A3: Az elszámolással érintett időszak kezdete és vége: | F3: =előlap!C7 -> 2020.01.01.-2022.12.31. | O3: Az elszámolással érintett időszak kezdete és vége: | T3: =F3 -> 2020.01.01.-2022.12.31. | AC3: Az elszámolással érintett időszak kezdete és vége: | AH3: =F3 -> 2020.01.01.-2022.12.31. | AQ3: Az elszámolással érintett időszak kezdete és vége: | AV3: =AH3 -> 2020.01.01.-2022.12.31.
A5: RÉSZFELADAT TÁBLA - TÁMOGATÁSI KÖLTSÉG | O5: RÉSZFELADAT TÁBLA - SAJÁT FORRÁS | AC5: RÉSZFELADAT TÁBLA - EGYÉB FORRÁS | AQ5: RÉSZFELADAT TÁBLA - ÖSSZESÍTÉS
A7: rész-fel-adat sor-szám | B7: támogatás típusa (legördülő menű) | C7: rész-feladat támog. Int. | D7: személyi juttatás (bruttó bér + juttatások) | E7: járulék | F7: külső megbízás | G7: egyéb dologi költségek | H7: rezsi költségek | I7: immateriális javak beszerzése | J7: eszközbe-szerzés | K7: beruházás, felújítás | L7: összesen | O7: rész-fel-adat sor-szám | P7: támogatás típusa | Q7: rész-feladat támog. Int. | R7: személyi juttatás (bruttó bér + juttatások) | S7: járulék | T7: külső megbízás | U7: egyéb dologi költségek | V7: rezsi költségek | W7: immateriális javak beszerzése | X7: eszközbe-szerzés | Y7: beruházás, felújítás | Z7: összesen | AC7: rész-fel-adat sor-szám | AD7: támogatás típusa | AE7: részfel-adat támog. Int. | AF7: személyi juttatás (bruttó bér + juttatások) | AG7: járulék | AH7: külső megbízás | AI7: egyéb dologi költségek | AJ7: rezsi költségek | AK7: immateriális javak beszerzése | AL7: eszközbe-szerzés | AM7: beruházás, felújítás | AN7: összesen | AQ7: rész-fel-adat sor-szám | AR7: támogatás típusa | AS7: részfel-adat támog. Int. | AT7: személyi juttatás (bruttó bér + juttatások) | AU7: járulék | AV7: külső megbízás | AW7: egyéb dologi költségek | AX7: rezsi költségek | AY7: immateriális javak beszerzése | AZ7: eszközbe-szerzés | BA7: beruházás, felújítás | BB7: összesen
A8: 1 | B8: K+F/Alkalm. | C8: 1 | D8: 6000 | E8: 2000 | F8: 325 | G8: 10100 | H8: 200 | I8: 3000 | J8: 50000 | K8: 2500 | L8: =SUM(D8:K8) -> 74125 | O8: =A8 -> 1 | P8: K+F/Alkalm. | Q8: 1 | R8: 600 | S8: 200 | T8: 0 | U8: 0 | V8: 0 | W8: 3000 | X8: 50000 | Y8: 7500 | Z8: =SUM(R8:Y8) -> 61300 | AC8: =A8 -> 1 | AD8: =P8 -> K+F/Alkalm. | AE8: 1 | AF8: 10 | AG8: 20 | AH8: 0 | AI8: 0 | AJ8: 0 | AK8: 0 | AL8: 0 | AM8: 0 | AN8: =SUM(AF8:AM8) -> 30 | AQ8: =A8 -> 1 | AR8: =AD8 -> K+F/Alkalm. | AS8: =AE8 -> 1 | AT8: =D8+R8+AF8 -> 6610 | AU8: 2220 | AV8: 325 | AW8: 10100 | AX8: 200 | AY8: 6000 | AZ8: 100000 | BA8: 10000 | BB8: =SUM(AT8:BA8) -> 135455
B9: K+F/Alkalm. | L9: =SUM(D9:K9) -> 0 | O9: 0 | P9: K+F/Alkalm. | Q9: 0 | Z9: =SUM(R9:Y9) -> 0 | AC9: =A9 -> 0 | AD9: K+F/Alkalm. | AE9: 0 | AN9: =SUM(AF9:AM9) -> 0 | AQ9: =A9 -> 0 | AR9: K+F/Alkalm. | AS9: 0 | AT9: =D9+R9+AF9 -> 0 | AU9: =E9+S9+AG9 -> 0 | AV9: =F9+T9+AH9 -> 0 | AW9: =G9+U9+AI9 -> 0 | AX9: =H9+V9+AJ9 -> 0 | AY9: =I9+W9+AK9 -> 0 | AZ9: =J9+X9+AL9 -> 0 | BA9: =K9+Y9+AM9 -> 0 | BB9: =SUM(AT9:BA9) -> 0
B10: K+F/Kis.fejl. | L10: 0 | O10: 0 | P10: K+F/Kis.fejl. | Q10: 0 | Z10: 0 | AC10: 0 | AD10: K+F/Kis.fejl. | AE10: 0 | AN10: 0 | AQ10: 0 | AR10: K+F/Kis.fejl. | AS10: 0 | AT10: 0 | AU10: 0 | AV10: 0 | AW10: 0 | AX10: =H10+V10+AJ10 -> 0 | AY10: 0 | AZ10: 0 | BA10: 0 | BB10: 0
B11: K+F/Mv tan. | L11: 0 | O11: =A11 -> 0 | P11: =B11 -> K+F/Mv tan. | Q11: =C11 -> 0 | Z11: 0 | AC11: 0 | AD11: =P11 -> K+F/Mv tan. | AE11: =Q11 -> 0 | AN11: 0 | AQ11: 0 | AR11: K+F/Mv tan. | AS11: 0 | AT11: 0 | AU11: 0 | AV11: 0 | AW11: 0 | AX11: 0 | AY11: 0 | AZ11: 0 | BA11: 0 | BB11: 0
B12: D.M./Közbesz. | L12: 0 | O12: 0 | P12: D.M./Közbesz. | Q12: 0 | Z12: 0 | AC12: 0 | AD12: D.M./Közbesz. | AE12: 0 | AN12: 0 | AQ12: 0 | AR12: D.M./Közbesz. | AS12: 0 | AT12: 0 | AU12: 0 | AV12: 0 | AW12: 0 | AX12: 0 | AY12: 0 | AZ12: 0 | BA12: 0 | BB12: 0
B13: D.M./Koord. | L13: 0 | O13: 0 | P13: D.M./Koord. | Q13: 0 | Z13: 0 | AC13: 0 | AD13: D.M./Koord. | AE13: 0 | AN13: 0 | AQ13: 0 | AR13: D.M./Koord. | AS13: 0 | AT13: 0 | AU13: 0 | AV13: 0 | AW13: 0 | AX13: 0 | AY13: 0 | AZ13: 0 | BA13: 0 | BB13: 0
B14: D.M./Tájék. | L14: 0 | O14: 0 | P14: D.M./Tájék. | Q14: 0 | Z14: 0 | AC14: 0 | AD14: D.M./Tájék. | AE14: 0 | AN14: 0 | AQ14: 0 | AR14: D.M./Tájék. | AS14: 0 | AT14: 0 | AU14: 0 | AV14: 0 | AW14: 0 | AX14: 0 | AY14: 0 | AZ14: 0 | BA14: 0 | BB14: 0
B15: D.M./Rezsi | L15: 0 | O15: 0 | P15: D.M./Rezsi | Q15: 0 | Z15: 0 | AC15: 0 | AD15: D.M./Rezsi | AE15: 0 | AN15: 0 | AQ15: 0 | AR15: D.M./Rezsi | AS15: 0 | AT15: 0 | AU15: 0 | AV15: 0 | AW15: 0 | AX15: 0 | AY15: 0 | AZ15: 0 | BA15: 0 | BB15: 0
B16: D.M./Egyéb | L16: 0 | O16: 0 | P16: D.M./Egyéb | Q16: 0 | Z16: 0 | AC16: 0 | AD16: D.M./Egyéb | AE16: 0 | AN16: 0 | AQ16: 0 | AR16: D.M./Egyéb | AS16: 0 | AT16: 0 | AU16: 0 | AV16: 0 | AW16: 0 | AX16: 0 | AY16: 0 | AZ16: 0 | BA16: 0 | BB16: 0
B17: Kut.infra.- b.r. | L17: 0 | O17: 0 | P17: Kut.infra.- b.r. | Q17: 0 | Z17: 0 | AC17: 0 | AD17: Kut.infra.- b.r. | AE17: 0 | AN17: 0 | AQ17: 0 | AR17: Kut.infra.- b.r. | AS17: 0 | AT17: 0 | AU17: 0 | AV17: 0 | AW17: 0 | AX17: 0 | AY17: 0 | AZ17: 0 | BA17: 0 | BB17: 0
B18: I.Klaszter/1 | L18: 0 | O18: 0 | P18: I.Klaszter/1 | Q18: 0 | Z18: 0 | AC18: 0 | AD18: I.Klaszter/1 | AE18: 0 | AN18: 0 | AQ18: 0 | AR18: I.Klaszter/1 | AS18: 0 | AT18: 0 | AU18: 0 | AV18: 0 | AW18: 0 | AX18: 0 | AY18: 0 | AZ18: 0 | BA18: 0 | BB18: 0
B19: I.Klaszter/2 | L19: 0 | O19: 0 | P19: I.Klaszter/2 | Q19: 0 | Z19: 0 | AC19: 0 | AD19: I.Klaszter/2 | AE19: 0 | AN19: 0 | AQ19: 0 | AR19: I.Klaszter/2 | AS19: 0 | AT19: 0 | AU19: 0 | AV19: 0 | AW19: 0 | AX19: 0 | AY19: 0 | AZ19: 0 | BA19: 0 | BB19: 0
B20: I.Klaszter/3 | L20: 0 | O20: 0 | P20: I.Klaszter/3 | Q20: 0 | Z20: 0 | AC20: 0 | AD20: I.Klaszter/3 | AE20: 0 | AN20: 0 | AQ20: 0 | AR20: I.Klaszter/3 | AS20: 0 | AT20: 0 | AU20: 0 | AV20: 0 | AW20: 0 | AX20: 0 | AY20: 0 | AZ20: 0 | BA20: 0 | BB20: 0
B21: KKV-innov./1 | L21: 0 | O21: 0 | P21: KKV-innov./1 | Q21: 0 | Z21: 0 | AC21: 0 | AD21: KKV-innov./1 | AE21: 0 | AN21: 0 | AQ21: 0 | AR21: KKV-innov./1 | AS21: 0 | AT21: 0 | AU21: 0 | AV21: 0 | AW21: 0 | AX21: 0 | AY21: 0 | AZ21: 0 | BA21: 0 | BB21: 0
B22: KKV-innov./2 | L22: 0 | O22: 0 | P22: KKV-innov./2 | Q22: 0 | Z22: 0 | AC22: 0 | AD22: KKV-innov./2 | AE22: 0 | AN22: 0 | AQ22: 0 | AR22: KKV-innov./2 | AS22: 0 | AT22: 0 | AU22: 0 | AV22: 0 | AW22: 0 | AX22: 0 | AY22: 0 | AZ22: 0 | BA22: 0 | BB22: 0
B23: KKV-innov./3 | L23: 0 | O23: 0 | P23: KKV-innov./3 | Q23: 0 | Z23: 0 | AC23: 0 | AD23: KKV-innov./3 | AE23: 0 | AN23: 0 | AQ23: 0 | AR23: KKV-innov./3 | AS23: 0 | AT23: 0 | AU23: 0 | AV23: 0 | AW23: 0 | AX23: 0 | AY23: 0 | AZ23: 0 | BA23: 0 | BB23: 0
B24: Elj.és szerv. innov. | L24: 0 | O24: 0 | P24: Elj.és szerv. innov. | Q24: 0 | Z24: 0 | AC24: 0 | AD24: Elj.és szerv. innov. | AE24: 0 | AN24: 0 | AQ24: 0 | AR24: Elj.és szerv. innov. | AS24: 0 | AT24: 0 | AU24: 0 | AV24: 0 | AW24: 0 | AX24: 0 | AY24: 0 | AZ24: 0 | BA24: 0 | BB24: 0
B25: KKV-b.r. | L25: 0 | O25: 0 | P25: KKV-b.r. | Q25: 0 | Z25: 0 | AC25: 0 | AD25: KKV-b.r. | AE25: 0 | AN25: 0 | AQ25: 0 | AR25: KKV-b.r. | AS25: 0 | AT25: 0 | AU25: 0 | AV25: 0 | AW25: 0 | AX25: 0 | AY25: 0 | AZ25: 0 | BA25: 0 | BB25: 0
B26: KKV-tan. | L26: =SUM(D26:K26) -> 0 | O26: =A26 -> 0 | P26: =B26 -> KKV-tan. | Q26: =C26 -> 0 | Z26: =SUM(R26:Y26) -> 0 | AC26: 0 | AD26: =P26 -> KKV-tan. | AE26: =Q26 -> 0 | AN26: =SUM(AF26:AM26) -> 0 | AQ26: 0 | AR26: =AD26 -> KKV-tan. | AS26: =AE26 -> 0 | AT26: =D26+R26+AF26 -> 0 | AU26: =E26+S26+AG26 -> 0 | AV26: =F26+T26+AH26 -> 0 | AW26: =G26+U26+AI26 -> 0 | AX26: 0 | AY26: =I26+W26+AK26 -> 0 | AZ26: =J26+X26+AL26 -> 0 | BA26: =K26+Y26+AM26 -> 0 | BB26: =SUM(AT26:BA26) -> 0
B27: KKV-tan. | L27: 0 | O27: 0 | P27: KKV-tan. | Q27: 0 | Z27: 0 | AC27: 0 | AD27: KKV-tan. | AE27: 0 | AN27: 0 | AQ27: 0 | AR27: KKV-tan. | AS27: 0 | AT27: 0 | AU27: 0 | AV27: 0 | AW27: 0 | AX27: 0 | AY27: 0 | AZ27: =J27+X27+AL27 -> 0 | BA27: =K27+Y27+AM27 -> 0 | BB27: 0
B28: KKV-vásár. | L28: 0 | O28: 0 | P28: KKV-vásár. | Q28: 0 | Z28: 0 | AC28: 0 | AD28: KKV-vásár. | AE28: 0 | AN28: 0 | AQ28: 0 | AR28: KKV-vásár. | AS28: 0 | AT28: 0 | AU28: 0 | AV28: 0 | AW28: 0 | AX28: 0 | AY28: 0 | AZ28: 0 | BA28: 0 | BB28: 0
B29: KKV-együttm. | L29: 0 | O29: 0 | P29: KKV-együttm. | Q29: 0 | Z29: 0 | AC29: 0 | AD29: KKV-együttm. | AE29: 0 | AN29: 0 | AQ29: 0 | AR29: KKV-együttm. | AS29: 0 | AT29: 0 | AU29: 0 | AV29: 0 | AW29: 0 | AX29: 0 | AY29: 0 | AZ29: 0 | BA29: 0 | BB29: 0
B30: Nem állami támogatás | L30: 0 | O30: 0 | P30: Nem állami támogatás | Q30: 0 | Z30: 0 | AC30: 0 | AD30: Nem állami támogatás | AE30: 0 | AN30: 0 | AQ30: 0 | AR30: Nem állami támogatás | AS30: 0 | AT30: 0 | AU30: 0 | AV30: 0 | AW30: 0 | AX30: 0 | AY30: 0 | AZ30: 0 | BA30: 0 | BB30: 0
L31: 0 | O31: 0 | P31: 0 | Q31: 0 | Z31: 0 | AC31: 0 | AD31: 0 | AE31: 0 | AN31: 0 | AQ31: 0 | AR31: 0 | AS31: 0 | AT31: 0 | AU31: 0 | AV31: 0 | AW31: 0 | AX31: 0 | AY31: 0 | AZ31: 0 | BA31: 0 | BB31: 0
L32: 0 | O32: 0 | P32: 0 | Q32: 0 | Z32: 0 | AC32: 0 | AD32: 0 | AE32: 0 | AN32: 0 | AQ32: 0 | AR32: 0 | AS32: 0 | AT32: 0 | AU32: 0 | AV32: 0 | AW32: 0 | AX32: 0 | AY32: 0 | AZ32: 0 | BA32: 0 | BB32: 0
L33: 0 | O33: 0 | P33: 0 | Q33: 0 | Z33: 0 | AC33: 0 | AD33: 0 | AE33: 0 | AN33: 0 | AQ33: 0 | AR33: 0 | AS33: 0 | AT33: 0 | AU33: 0 | AV33: 0 | AW33: 0 | AX33: 0 | AY33: 0 | AZ33: 0 | BA33: 0 | BB33: 0
L34: 0 | O34: 0 | P34: 0 | Q34: 0 | Z34: 0 | AC34: 0 | AD34: 0 | AE34: 0 | AN34: 0 | AQ34: 0 | AR34: 0 | AS34: 0 | AT34: 0 | AU34: 0 | AV34: 0 | AW34: 0 | AX34: 0 | AY34: 0 | AZ34: 0 | BA34: 0 | BB34: 0
L35: 0 | O35: 0 | P35: 0 | Q35: 0 | Z35: 0 | AC35: 0 | AD35: 0 | AE35: 0 | AN35: 0 | AQ35: 0 | AR35: 0 | AS35: 0 | AT35: 0 | AU35: 0 | AV35: 0 | AW35: 0 | AX35: 0 | AY35: 0 | AZ35: 0 | BA35: 0 | BB35: 0
L36: 0 | O36: 0 | P36: 0 | Q36: 0 | Z36: 0 | AC36: 0 | AD36: 0 | AE36: 0 | AN36: 0 | AQ36: 0 | AR36: 0 | AS36: 0 | AT36: 0 | AU36: 0 | AV36: 0 | AW36: 0 | AX36: 0 | AY36: 0 | AZ36: 0 | BA36: 0 | BB36: 0
A38: elszámolt költségek összegzése: | D38: =SUM(D8:D37) -> 6000 | E38: 2000 | F38: 325 | G38: 10100 | H38: 200 | I38: 3000 | J38: 50000 | K38: 2500 | L38: 74125 | O38: elszámolt költségek összegzése: | R38: =SUM(R8:R37) -> 600 | S38: 200 | T38: 0 | U38: 0 | V38: 0 | W38: 3000 | X38: 50000 | Y38: 7500 | Z38: 61300 | AC38: elszámolt költségek összegzése: | AF38: =SUM(AF8:AF37) -> 10 | AG38: 20 | AH38: 0 | AI38: 0 | AJ38: 0 | AK38: 0 | AL38: 0 | AM38: 0 | AN38: 30 | AQ38: elszámolt költségek összegzése: | AT38: =SUM(AT8:AT37) -> 6610 | AU38: 2220 | AV38: 325 | AW38: 10100 | AX38: 200 | AY38: 6000 | AZ38: 100000 | BA38: 10000 | BB38: 135455
A39: költségösszegzés a számlaösszesítők alapján: | D39: ='(1T-2T) személyi+járulék'!N26 -> 6000 | E39: ='(1T-2T) személyi+járulék'!Q26 -> 2000 | F39: ='(3T) külső megbízás'!L28 -> 325 | G39: ='(4T) egyéb dologi költs'!L25 -> 10100 | H39: ='(5T) rezsi'!L25 -> 200 | I39: ='(6T)immat beszerz'!O27 -> 3000 | J39: ='(7T) eszközbeszerz'!O27 -> 50000 | K39: ='(8T) beruházás felújítás'!O27 -> 2500 | L39: =SUM(D39:K39) -> 74125 | O39: költségösszegzés a számlaösszesítők alapján: | R39: ='(1T-2T) személyi+járulék'!O26 -> 600 | S39: ='(1T-2T) személyi+járulék'!R26 -> 200 | T39: ='(3T) külső megbízás'!M28 -> 0 | U39: ='(4T) egyéb dologi költs'!M25 -> 0 | V39: ='(5T) rezsi'!M25 -> 0 | W39: ='(6T)immat beszerz'!P27 -> 3000 | X39: ='(7T) eszközbeszerz'!P27 -> 50000 | Y39: ='(8T) beruházás felújítás'!P27 -> 7500 | Z39: =SUM(R39:Y39) -> 61300 | AC39: költségösszegzés a számlaösszesítők alapján: | AF39: ='(1T-2T) személyi+járulék'!M26 -> 10 | AG39: ='(1T-2T) személyi+járulék'!S26 -> 20 | AH39: ='(3T) külső megbízás'!N28 -> 0 | AI39: ='(4T) egyéb dologi költs'!N25 -> 0 | AJ39: ='(5T) rezsi'!N25 -> 0 | AK39: ='(6T)immat beszerz'!Q27 -> 0 | AL39: ='(7T) eszközbeszerz'!Q27 -> 0 | AM39: ='(8T) beruházás felújítás'!Q27 -> 0 | AN39: =SUM(AF39:AM39) -> 30 | AQ39: költségösszegzés a számlaösszesítők alapján: | AT39: =SUM('(1T-2T) személyi+járulék'!N26:P26) -> 6660 | AU39: =SUM('(1T-2T) személyi+járulék'!Q26:S26) -> 2220 | AV39: ='(3T) külső megbízás'!O28 -> 325 | AW39: ='(4T) egyéb dologi költs'!O25 -> 10100 | AX39: ='(5T) rezsi'!O25 -> 200 | AY39: ='(6T)immat beszerz'!R27 -> 6000 | AZ39: ='(7T) eszközbeszerz'!R27 -> 100000 | BA39: ='(8T) beruházás felújítás'!R27 -> 10000 | BB39: =SUM(AT39:BA39) -> 135505
A40: Hely, dátum | O40: Hely, dátum | AC40: Hely, dátum | AQ40: Hely, dátum
E43: ………………………………………. | S43: ………………………………………. | AG43: ………………………………………. | AU43: ……………………………………….
E44: cégszerű aláírás* | G44: PH. | S44: cégszerű aláírás* | U44: PH. | AG44: cégszerű aláírás* | AI44: PH. | AU44: cégszerű aláírás* | AW44: PH.
A45: * Az aláírók nevét nyomtatott betűkkel is kérjük kitölteni. | O45: * Az aláírók nevét nyomtatott betűkkel is kérjük kitölteni. | AC45: * Az aláírók nevét nyomtatott betűkkel is kérjük kitölteni.
AQ47: * Az aláírók nevét nyomtatott betűkkel is kérjük kitölteni.

Sheet támogatás típusai (hidden)
A2: támogatás típus rövídítése | B2: támogatás típusa
A4: K+F/Alap. | B4: Alapkutatás | C4: Kutatás-fejlesztési projekthez nyújtott támogatás
A5: K+F/Alkalm. | B5: Alkalmazott (ipari) kutatás
A6: K+F/Kis.fejl. | B6: Kísérleti fejlesztés
A7: K+F/Mv tan. | B7: Megvalósíthatósági tanulmány
A8: D.M./Közbesz. | B8: Közbeszerzés | C8: De minimis támogatás
A9: D.M./Koord. | B9: Koordináció
A10: D.M./Tájék. | B10: Tájékoztatás
A11: D.M./Rezsi | B11: Rezsi
A12: D.M./Egyéb | B12: Egyéb
A13: Kut.infra.- b.r. | B13: Kutatási infrastruktúrához nyújtott beruházási támogatás | C13: Kutatási infrastruktúrához nyújtott beruházási támogatás
A14: I.Klaszter/1 | B14: az együttműködés és információmegosztás elősegítésére, illetve a specializált, személyre szabott üzleti szolgáltatás nyújtásának vagy közvetítésének javítására szolgáló klaszterélénkítés | C14: Innovációs klaszterre nyújtott támogatás
A15: I.Klaszter/2 | B15: az újabb vállalkozások és szervezetek klaszterhez történő csatlakozása, valamint a klaszter ismertségének növelése érdekében végzett marketingtevékenység
A16: I.Klaszter/3 | B16: a klaszter létesítményeinek kezelése; az ismeretmegosztás, kapcsolatépítés és nemzetközi együttműködés támogatására szolgáló képzési programok, műhelytalálkozók és konferenciák szervezése
A17: KKV-innov./1 | B17: szabadalmak és egyéb immateriális javak megszerzésének, érvényesítésének és védelmének költségei | C17: KKV-knak nyújtott innovációs támogatás
A18: KKV-innov./2 | B18: olyan, kutató-tudásközvetítő szervezettől vagy nagyvállalkozástól kirendelt, magasan képzett munkaerő költségei, aki kutatás-fejlesztési és innovációs tevékenységeken, a kedvezményezettnél újonnan létrehozott munkakörben dolgozik, és nem a személyzet más tagjait helyettesíti
A19: KKV-innov./3 | B19: innovációs tanácsadás és támogató szolgáltatások költségei
A20: Elj.és szerv. innov. | B20: Eljárási és szervezési innováció támogatása | C20: Eljárási és szervezési innováció támogatása
A21: KKV-b.r. | B21: KKV-knak nyújtott beruházási támogatás | C21: KKV-knak nyújtott beruházási támogatás
A22: KKV-tan. | B22: A kkv-k részére tanácsadáshoz nyújtott támogatás | C22: A kkv-k részére tanácsadáshoz nyújtott támogatás
A23: KKV-vásár. | B23: A kkv-k vásárokon való részvételéhez nyújtott támogatás | C23: A kkv-k vásárokon való részvételéhez nyújtott támogatás
A24: KKV-együttm. | B24: Az európai területi együttműködési projektekben részt vevő kkv-knál felmerült együttműködési költségekhez nyújtott támogatás | C24: Az európai területi együttműködési projektekben részt vevő kkv-knál felmerült együttműködési költségekhez nyújtott támogatás
A25: Nem állami támogatás | B25: Nem állami támogatás

Sheet (TI) támogatás igénylés
A1: Egy példányban kitöltve, eredeti aláírással és bélyegzéssel ellátva kell benyújtani.
A2: Az űrlap másolható, alakját és tartalmát kérjük, ne változtassa meg!
A3: Az űrlap a táblázat adatait a részfeladat táblából automatikusan átveszi!
A5: TÁMOGATÁS IGÉNYLÉS
A7: Számviteli bizonylat a(z) | B7: ='(1T-2T) személyi+járulék'!G2 -> NPK_22-2022-0001 | C7: számú szerződésben foglalt források felhasználásának elszámolásához
A8: A bizonylat formájára és tartalmára a számvitelről szóló 2000. évi C. törvény előírásai az irányadók
A10: Kedvezményezett: | D10: Támogatást nyújtó:
A11: Kedvezményezett neve:……………………………… | D11: Nemzeti Kutatási, Fejlesztési és Innovációs Hivatal | E11: Nemzeti Kutatási, Fejlesztési és Innovációs Hivatal
A12: címe: …………………………………………………… | D12: címe: 1077 Budapest, Kéthly Anna tér 1.
D13: Magyar Államkincstárnál vezetett számla
A14: Adóazonosító száma: ………………………………… | D14: Megnevezése:
D15: Nemzeti Kutatási, Fejlesztési és Innovációs Alap, Előirányzat-felhasználási keretszámla:
A16: Hitelintézet: ………………………………………..….. | D16: száma:
D17: 10032000-00334806-00000000
A18: Pénzforgalmi jelzőszáma: | D18: AHT azonosító:
A19: ………………………………………………..……….. | D19: 348962
A20: Teljesítés időpontja: (*) | C20: Bizonylat kelte: | D20: Támogatásigénylő bizonylat sorszáma: (**)
A21: év hó nap | C21: év hó nap
A22: A szerződés mellékletében rögzített, a számlaösszesítőkben feltűntetett részfeladatok teljesítésének ráfordításai forrásonként és jogcímenként (***)
A23: Költségtípusok | B23: Támogatás (Ft) | C23: Saját forrás (Ft) | D23: Egyéb forrás (Ft) | E23: Összesen (Ft)
A24: Működési költségek (1+2+3+4+5) | B24: =SUM(B25:B26)+SUM(B28:B30) -> 18625 | C24: =SUM(C25:C26)+SUM(C28:C30) -> 800 | D24: 30 | E24: =SUM(B24:D24) -> 19455
A25: Személyi juttatások (1) | B25: ='(9T) részfeladat tábla'!D38 -> 6000 | C25: ='(9T) részfeladat tábla'!R38 -> 600 | D25: ='(9T) részfeladat tábla'!AF38 -> 10 | E25: 6610
A26: Munkaadókat terhelő járulékok (2) | B26: ='(9T) részfeladat tábla'!E38 -> 2000 | C26: ='(9T) részfeladat tábla'!S38 -> 200 | D26: ='(9T) részfeladat tábla'!AG38 -> 20 | E26: 2220
A27: Dologi költségek (3+4+5) | B27: =SUM(B28:B30) -> 10625 | C27: =SUM(C28:C30) -> 0 | D27: =SUM(D28:D30) -> 0 | E27: 10625
A28: Külső megbízás (3) | B28: ='(9T) részfeladat tábla'!F38 -> 325 | C28: ='(9T) részfeladat tábla'!T38 -> 0 | D28: ='(9T) részfeladat tábla'!AH38 -> 0 | E28: 325
A29: Egyéb dologi költségek (4) | B29: ='(9T) részfeladat tábla'!G38 -> 10100 | C29: ='(9T) részfeladat tábla'!U38 -> 0 | D29: ='(9T) részfeladat tábla'!AI38 -> 0 | E29: =SUM(B29:D29) -> 10100
A30: Rezsi költségek (5) | B30: ='(9T) részfeladat tábla'!H38 -> 200 | C30: ='(9T) részfeladat tábla'!V38 -> 0 | D30: ='(9T) részfeladat tábla'!AJ38 -> 0 | E30: 200
A31: Felhalmozási költségek (6+7+8) | B31: =SUM(B32:B34) -> 55500 | C31: =SUM(C32:C34) -> 60500 | D31: =SUM(D32:D34) -> 0 | E31: =SUM(B31:D31) -> 116000
A32: Immateriális javak beszerzése (6) | B32: ='(9T) részfeladat tábla'!I38 -> 3000 | C32: ='(9T) részfeladat tábla'!W38 -> 3000 | D32: ='(9T) részfeladat tábla'!AK38 -> 0 | E32: =SUM(B32:D32) -> 6000
A33: Eszközbeszerzések (7) | B33: ='(9T) részfeladat tábla'!J38 -> 50000 | C33: ='(9T) részfeladat tábla'!X38 -> 50000 | D33: ='(9T) részfeladat tábla'!AL38 -> 0 | E33: =SUM(B33:D33) -> 100000
A34: Beruházás, felújítás (8) | B34: ='(9T) részfeladat tábla'!K38 -> 2500 | C34: ='(9T) részfeladat tábla'!Y38 -> 7500 | D34: ='(9T) részfeladat tábla'!AM38 -> 0 | E34: =SUM(B34:D34) -> 10000
A35: Költségek összesen: (1+2+3+4+5+6+7+8) | B35: =B24+B31 -> 74125 | C35: =C24+C31 -> 61300 | D35: =D24+D31 -> 30 | E35: =SUM(B35:D35) -> 135455
A38: Igényelt támogatás (****) összesen: ………………………Ft, azaz ………………………………………………Ft
A39: A jelen munkaszakaszban felhasználásra nem került előleget/támogatást a következő munkaszakasz megvalósításakor kívánjuk igénybe venni.
A41: cégszerű aláírás (*****) …………………………………………………………………… | D41: PH.
A43: * Az adott munkaszakasz vége.
A44: ** Javasolt munkaszakaszokhoz köthető sorszámot megadni. Pl. (xxxx -1/2017)
A45: *** A kedvezményezett részéről a szerződés szerinti könyvvizsgálói nyilatkozat egyidejű csatolása szükséges.
A46: **** Az igényelt támogatás az elszámolt támogatás és a kapott előleg különbsége.
A47: ***** Az aláírók nevét nyomtatott betűkkel is kérjük kitölteni.

Sheet (KNY)könyvvizsgálói nyilatkozat
A1: Egy példányban kitöltve, eredeti aláírással és bélyegzéssel ellátva kell benyújtani. | E1: Formanyomtatvány pénzügyi elszámoláshoz
A2: A táblázat adatai a Támogatás igénylés lapról automatikusan bemásolódnak!
A4: Kedvezményezett neve: | B4: ='(1T-2T) személyi+járulék'!G1 -> ZZ Kft
A5: Szerződésszám: | B5: ='(1T-2T) személyi+járulék'!G2 -> NPK_22-2022-0001
A6: Az elszámolással érintett időszak kezdete és vége: | B6: ='(1T-2T) személyi+járulék'!G3 -> 2020.01.01.-2022.12.31.
C10: N Y I L A T K O Z A T
C11: (a kedvezményezett tölti ki)
A14: Alulírott <név>, mint a <kedvezményezett megnevezése> társaság/szervezet cégjegyzésre jogosult vezetője teljes jogi felelősséggel nyilatkozom, hogy a fenti támogatási szerződés alapján a szakmai és pénzügyi beszámolóra vonatkozó előírások szerint a támogatás és a saját/egyéb forrás felhasználásáról, valamint a kamatok tekintetében teljes körű, elkülönített nyilvántartást vezetek. Az elszámolni kívánt költségek az adott projektre vonatkozó tárgyi és időbeli elszámolhatósági szabályokkal összhangban, számlákkal vagy egyéb a költséget igazoló számviteli bizonylatokkal alátámasztva, teljesítésigazolás mellett kerültek felhasználásra és azokra további EU-s vagy egyéb hazai támogatás nem került elszámolásra. A szerződés melléklete alapján, a számlaösszesítőkben feltüntetett részfeladatok teljesítése során keletkezett ráfordítások összege < összeg számmal Ft-ban> Ft azaz <összeg betűvel Ft-ban>, az alábbi forrásonként és jogcímenként kerülnek elszámolásra. A kimutatott ráfordítások a szerződésben vállalt célok megvalósítása érdekében merültek fel.
A17: Költségtípusok | B17: Támogatás (Ft) | C17: Saját forrás (Ft) | D17: Egyéb forrás (Ft) | E17: Összesen (Ft)
A18: Személyi juttatások | B18: ='(TI) támogatás igénylés'!B25 -> 6000 | C18: ='(TI) támogatás igénylés'!C25 -> 600 | D18: ='(TI) támogatás igénylés'!D25 -> 10 | E18: =SUM(B18:D18) -> 6610
A19: Munkaadókat terhelő járulékok | B19: ='(TI) támogatás igénylés'!B26 -> 2000 | C19: ='(TI) támogatás igénylés'!C26 -> 200 | D19: ='(TI) támogatás igénylés'!D26 -> 20 | E19: 2220
A20: Külső megbízás | B20: ='(TI) támogatás igénylés'!B28 -> 325 | C20: ='(TI) támogatás igénylés'!C28 -> 0 | D20: ='(TI) támogatás igénylés'!D28 -> 0 | E20: 325
A21: Egyéb dologi költségek | B21: ='(TI) támogatás igénylés'!B29 -> 10100 | C21: ='(TI) támogatás igénylés'!C29 -> 0 | D21: ='(TI) támogatás igénylés'!D29 -> 0 | E21: 10100
A22: Rezsi költségek | B22: ='(TI) támogatás igénylés'!B30 -> 200 | C22: ='(TI) támogatás igénylés'!C30 -> 0 | D22: ='(TI) támogatás igénylés'!D30 -> 0 | E22: 200
A23: Immateriális javak beszerzése | B23: ='(TI) támogatás igénylés'!B32 -> 3000 | C23: ='(TI) támogatás igénylés'!C32 -> 3000 | D23: ='(TI) támogatás igénylés'!D32 -> 0 | E23: 6000
A24: Eszközbeszerzések | B24: ='(TI) támogatás igénylés'!B33 -> 50000 | C24: ='(TI) támogatás igénylés'!C33 -> 50000 | D24: ='(TI) támogatás igénylés'!D33 -> 0 | E24: 100000
A25: Beruházás, felújítás | B25: ='(TI) támogatás igénylés'!B34 -> 2500 | C25: ='(TI) támogatás igénylés'!C34 -> 7500 | D25: ='(TI) támogatás igénylés'!D34 -> 0 | E25: 10000
A26: Összesen: | B26: =SUM(B18:B25) -> 74125 | C26: =SUM(C18:C25) -> 61300 | D26: =SUM(D18:D25) -> 30 | E26: =SUM(E18:E25) -> 135455
A28: ………………………., …………év …………….hó …….nap.
D31: …………………………
C32: Kedvezményezett képviseletére jogosult vezető aláírása*
D33: PH.
A35: Alulírott <név>, mint a <kedvezményezett megnevezése> társaság/szervezet (megbízott) könyvvizsgálója, és <név>, mint a <kedvezményezett megnevezése> társaság/szervezet gazdasági vezetője igazolom, hogy a fenti adatok a <kedvezményezett megnevezése> társaság/szervezet elkülönített számviteli nyilvántartásával megegyeznek.
A37: ………………………., ……….év ………………hó ……nap.
B40: ………………………… | E40: …………………………
B41: gazdasági vezető aláírása* | E41: könyvvizsgáló aláírása*
E42: Könyvvizsgálói Kamaránál nyilvántartott bejegyzési szám: …………………….
A45: Melléklet: aláírt támogatásigénylő lap (melynek ráfordítási adatai jogcímenként és forrásonként megegyezik a nyilatkozatban foglalt adatokkal)
A46: * Az aláírók nevét nyomtatott betűkkel is kérjük kitölteni.

Sheet (LNY) lemondó nyilatkozat
A2: Egy példányban kitöltve, eredeti aláírással és bélyegzéssel ellátva kell benyújtani.
A7: Lemondó Nyilatkozat
A11: Kedvezményezett neve | B11: ='(1T-2T) személyi+járulék'!G1 -> ZZ Kft
A12: Szerződésszám | B12: ='(1T-2T) személyi+járulék'!G2 -> NPK_22-2022-0001
A13: Az elszámolással érintett időszak kezdete és vége: | B13: ='(1T-2T) személyi+járulék'!G3 -> 2020.01.01.-2022.12.31.
A16: Alulírott <név>, mint a <kedvezményezett megnevezése> társaság/szervezet cégjegyzésre jogosult vezetője nyilatkozom, hogy a fenti azonosító számú projekt megvalósításához a megítélt támogatásból összesen <a ténylegesen elszámolt támogatás összege> Ft került felhasználásra. A fennmaradó <a megítélt és a tényleges támogatás különbsége> Ft támogatást a továbbiakban nem kívánom igénybe venni, így arról lemondok.
A19: Hely, dátum
B23: ………………………………
B24: Kedvezményezett cégszerű *
B25: aláírása
B26: Ph.
A31: * Az aláírók nevét nyomtatott betűkkel is kérjük kitölteni

Sheet (NYF)nyilatkozat függetlenségre
A2: Egy példányban kitöltve, eredeti aláírással és bélyegzéssel ellátva kell benyújtani.
A8: Nyilatkozat az összeférhetetlenségre vonatkozóan
A12: Kedvezményezett neve | B12: ='(1T-2T) személyi+járulék'!G1 -> ZZ Kft
A13: Szerződésszám | B13: ='(1T-2T) személyi+járulék'!G2 -> NPK_22-2022-0001
A14: Az elszámolással érintett időszak kezdete és vége: | B14: ='(1T-2T) személyi+járulék'!G3 -> 2020.01.01.-2022.12.31.
A17: Alulírott <név>, mint a <kedvezményezett megnevezése> társaság/szervezet cégjegyzésre jogosult vezetője büntető jogi felelősségem tudatában nyilatkozom, hogy a fenti azonosító számú támogatási szerződés alapján finanszírozott projekt megvalósításához igénybe vett szolgáltatások és beszerzések a szokásos piaci feltételeknek megfelelően, független felek között, a hivatkozott támogatási szerződésben, valamint ennek mellékleteiben foglalt előírások szerint jöttek létre.
A20: Hely, dátum
B24: ………………………………
B25: Kedvezményezett cégszerű *
B26: aláírása
B27: Ph.
A32: * Az aláírók nevét nyomtatott betűkkel is kérjük kitölteni

Sheet (EI) előleg igénylés
A2: Egy példányban kitöltve, eredeti aláírással és bélyegzéssel ellátva kell benyújtani.
A3: Az űrlap másolható, alakját és tartalmát kérjük, ne változtassa meg!
A5: ELŐLEG IGÉNYLÉS
A7: Számviteli bizonylat az | B7: ='(TI) támogatás igénylés'!B7 -> NPK_22-2022-0001 | C7: számú szerződésben foglalt projekthez
A8: A bizonylat formájára és tartalmára a számvitelről szóló 2000. évi C. törvény előírásai az irányadók
A10: Kedvezményezett: | C10: Támogatást nyújtó:
A11: …………………………………………………………. | C11: Nemzeti Kutatási, Fejlesztési és Innovációs Hivatal
A12: címe: …………………………………………………. | C12: címe: 1077 Budapest, Kéthly anna tér 1.
A14: Adóazonosító száma: ………………………………… | C14: Megnevezése:
C15: Nemzeti Kutatási, Fejlesztési és Innovációs Alap, Előirányzat-felhasználási keretszámla:
A16: Hitelintézet:
A17: ……………………………………………………….. | C17: száma: 10032000-00334806-00000000
A18: Pénzforgalmi jelzőszáma: | C18: AHT azonosító:
A19: ……………………………………………………….. | C19: 348962
A20: Előleg elszámolási határidő: | B20: Bizonylat kelte: | C20: Bizonylat sorszáma
A21: év hó nap | B21: év hó nap
A22: A szerződés teljesítéséhez igényelt előleg jogcímei.
A23: Költségtípusok | B23: Támogatás (Ft)
A24: Működési költségek (1+2+3+4+5) | B24: =B25+B26+B27 -> 0
A25: Személyi juttatások (1)
A26: Munkaadókat terhelő járulékok (2)
A27: Dologi költségek (3+4+5) | B27: =B28+B29 -> 0
A28: Külső megbízás (3)
A29: Egyéb dologi költségek (4)
A30: Rezsi költségek (5)
A31: Felhalmozási költségek (6+7+8) | B31: =SUM(B32:B34) -> 0
A32: Immateriális javak beszerzése (6)
A33: Eszközbeszerzések (7)
A34: Beruházás, felújítás (8)
A35: Költségek összesen:(1+2+3+4+5+6+7+8) | B35: =B24+B31 -> 0
A38: Igényelt előleg összesen: ………………………Ft, azaz ………………………………………………Ft
A40: Előleg kérelem indoklása:
B42: ………………………
B43: cégszerű aláírás*
A45: * Az aláírók nevét nyomtatott betűkkel is kérjük kitölteni.
